Cogmind - Beta 13 @@@ ROGUE MODE // 2024.04.01 @ 23:46:32 Player: Jawaka Result: Destroyed by B-75 Beast with Heavy Machine Gun Performance ------------- Evolutions (1) 500 Regions Visited (5) 1000 Robots Destroyed (21) 105 Value Destroyed (613) 613 Prototype IDs (2) 40 Alien Tech Used (0) 0 Bonus (37) 37 TOTAL SCORE: 2295 Bonus ------- Follower Combat Kills 37 Cogmind --------- Core Integrity 0/400 Matter 275/300 Energy 100/100 System Corruption 0% Temperature Cool (0) Movement Rolling (90) Location -6/Proximity Caves Parts ------- > --- POWER (1) -------- (None) > --- PROPULSION (4) --- Armored Wheel Improved Flight Unit Improved Flight Unit > --- UTILITY (2) ------ (None) > --- WEAPON (2) ------- Great Maul > --- INVENTORY (5) ---- (None) Peak State ------------ > --- POWER ------------ Improved Ion Engine > --- PROPULSION ------- Improved Flight Unit Improved Flight Unit Improved Flight Unit Cesium-ion Thruster > --- UTILITY ---------- Heat Sink Small Storage Unit > --- WEAPON ----------- Enhanced Flamer Phasing Sabre > --- INVENTORY -------- Improved Flight Unit Improved Flight Unit Light EM Pulse Cannon Light EM Pulse Cannon Beam Cannon [Rating: 26] Favorites ----------- Power Light Ion Engine Engine Light Ion Engine Power Core Light Nuclear Core Propulsion Improved Flight Unit Leg Aluminum Leg Wheel Armored Wheel Hover Unit Hover Unit Flight Unit Improved Flight Unit Utility Heat Sink Device Heat Sink Storage Small Storage Unit Weapon Improved EM Shotgun Energy Gun Improved EM Shotgun Energy Cannon Light EM Pulse Cannon Special Weapon Enhanced Flamer Impact Weapon Great Maul Slashing Weapon Phasing Sabre Build | -11 -10 -9 -9 -7 -6 ------- Run | Yrd Mat Mat Min Zio Pro Slots Evolved 2 | . . 2 . . . Power . | . . . . . . Propulsion 2 | . . 2 . . . Utility . | . . . . . . Weapon . | . . . . . . Parts Attached 46 | 8 9 11 . . 18 Power 4 | 1 1 1 . . 1 Engine 3 | 1 1 1 . . . Core 1 | . . . . . 1 Reactor . | . . . . . . Propulsion 19 | 3 4 7 . . 5 Treads . | . . . . . . Leg 3 | 3 . . . . . Wheel 1 | . . . . . 1 Hover 4 | . 1 3 . . . Flight 11 | . 3 4 . . 4 Utility 5 | 2 3 . . . . Device 2 | 1 1 . . . . Storage 3 | 1 2 . . . . Processor . | . . . . . . Hackware . | . . . . . . Protection . | . . . . . . Artifact . | . . . . . . Weapon 18 | 2 1 3 . . 12 Energy Gun 5 | 2 . 3 . . . Energy Cannon 7 | . 1 . . . 6 Ballistic Gun . | . . . . . . Ballistic Cannon . | . . . . . . Launcher . | . . . . . . Special Weapon 3 | . . . . . 3 Impact Weapon 1 | . . . . . 1 Slashing Weapon 2 | . . . . . 2 Piercing Weapon . | . . . . . . Special Melee Weapon . | . . . . . . Unidentified Prototypes 2 | . . 2 . . . Parts Lost 19 | . 1 2 . . 16 Power 4 | . 1 1 . . 2 Propulsion 5 | . . 1 . . 4 Utility 2 | . . . . . 2 Weapon 8 | . . . . . 8 Highest Loss Streak 9 | . 1 1 . . 9 To Critical Strikes . | . . . . . . Average Slot Usage (%) 86 | . 97 64 100 100 77 Engine 10 | . 14 7 11 11 4 Leg 4 | . 11 . . . . Hover 1 | . . 3 . . . Flight 26 | . 15 20 44 44 41 Device 11 | . 14 11 11 11 8 Storage 10 | . 13 11 11 11 2 Energy Gun 15 | . 24 7 22 22 2 Energy Cannon 4 | . 1 3 . . 12 Naked Turns . | . . . . . . Heaviest Build 20 | 8 12 19 19 19 20 Greatest Support 20 | 20 20 20 20 20 20 Greatest Overweight (x) 3 | . 1 3 . . 1 Average Overweight (x) . | . . . . . . Largest Inventory Capacity 8 | 5 8 8 8 8 8 Average Capacity 6 | 5 6 8 8 8 5 Most Carried 8 | 5 7 8 7 8 8 Average Carried 3 | 2 3 6 7 7 2 Final Capacity 8 | 5 8 8 8 8 5 Final Carried 8 | 1 6 7 7 8 . Class Distribution -------------------- 38% | Scavenger-Mutant 36% | Mutant 21% | Sprinter 3% | Scavenger-Sprinter Dominant Class ---------------- Scavenger-Mutant | -10/Materials Scavenger-Mutant | -9/Materials Sprinter | -9/Mines Sprinter | -7/Zion Mutant | -6/Proximity Caves Resources | -11 -10 -9 -9 -7 -6 ----------- Run | Yrd Mat Mat Min Zio Pro Matter Collected 614 | 276 109 102 . 33 94 Remotely . | . . . . . . Salvage Created 982 | 54 323 162 . . 443 Parts 51 | 6 23 11 . . 11 Haulers Intercepted 1 | . . 1 . . . Recyclers Shooed . | . . . . . . Parts Field Recycled . | . . . . . . Retrieved Matter . | . . . . . . Parts Self-Destructed 4 | . . . . . 4 Prevented 6 | . . . . . 6 Kills | -11 -10 -9 -9 -7 -6 ------- Run | Yrd Mat Mat Min Zio Pro Combat Hostiles Destroyed 16 | 1 7 2 . . 6 Guns 10 | 1 7 2 . . . Cannons 1 | . . . . . 1 AOE 4 | . . . . . 4 Classes Destroyed 9 | 2 3 2 . . 2 Worker 2 | 1 1 . . . . Hauler 1 | . . 1 . . . Recycler 1 | . 1 . . . . Watcher 1 | . 1 . . . . Swarmer 3 | . 3 . . . . Grunt 11 | 1 4 1 . . 5 Brawler 1 | . . . . . 1 Sentry 1 | . . 1 . . . Samaritan 2 | . . . . . 2 Best Kill Streak 4 | 1 4 1 . . 3 Combat Bots Only 3 | 1 3 1 . . 3 Max Kills in Single Turn 2 | 1 1 1 . . 2 Gunslinging . | . . . . . . Exploded 2 | . . . . . 2 Melee . | . . . . . . Uniques/NPCs Destroyed . | . . . . . . Combat | -11 -10 -9 -9 -7 -6 -------- Run | Yrd Mat Mat Min Zio Pro Hostile Shots Fired 148 | 4 31 23 . . 90 Missed 46 | 2 9 4 . . 31 Damage Taken 1812 | 23 224 276 . . 1289 Core 535 | . 130 99 . . 306 Absorbed by Shields . | . . . . . . Core Remaining (%) 74 | 100 48 . . . . Volleys Fired 85 | 5 30 20 . . 30 Largest 2 | 2 2 1 . . 2 Hottest 125 | 90 90 60 . . 125 Shots Fired 134 | 10 59 20 . . 45 Gun 92 | 10 58 12 . . 12 Cannon 39 | . 1 8 . . 30 Launcher . | . . . . . . Special 3 | . . . . . 3 Kinetic . | . . . . . . Thermal 84 | 10 59 8 . . 7 Explosive . | . . . . . . Electromagnetic 50 | . . 12 . . 38 Robot Hit Streak 9 | 2 6 7 . . 9 Robot Miss Streak 4 | 1 2 4 . . 2 Penetration Max . | . . . . . . Secondary Targets . | . . . . . . Shots Hit Robots 92 | 5 36 16 . . 35 Core Hits 44 | 3 15 7 . . 19 Critical Kills . | . . . . . . Critical Parts Destroyed 1 | . . . . . 1 Critical Strikes 4 | . 2 . . . 2 Burn 2 | . 2 . . . . Corrupt 1 | . . . . . 1 Smash 1 | . . . . . 1 Melee Attacks 2 | . . . . . 2 Impact 2 | . . . . . 2 Slashing . | . . . . . . Piercing . | . . . . . . Sneak Attacks . | . . . . . . Combat Hostiles . | . . . . . . Follow-up Attacks . | . . . . . . Damage Inflicted 1807 | 58 414 280 . . 1055 Guns 785 | 58 411 156 . . 160 Cannons 519 | . . 124 . . 395 Explosions 410 | . . . . . 410 Melee 80 | . . . . . 80 Ramming 3 | . 3 . . . . Kinetic . | . . . . . . Thermal 1021 | 58 411 124 . . 428 Explosive . | . . . . . . Electromagnetic 703 | . . 156 . . 547 Impact 80 | . . . . . 80 Slashing . | . . . . . . Piercing . | . . . . . . Highest Corruption 1 | . 1 . . . . Average Corruption 1 | . 1 . . . . Corruption Purged . | . . . . . . Corruption Blocked . | . . . . . . Effects 2 | . 2 . . . . Matter Fused 1 | . 1 . . . . Energy Discharges 1 | . 1 . . . . Overload Shots . | . . . . . . Overflow Damage 74 | . . . . . 74 Projectiles . | . . . . . . Explosions 32 | . . . . . 32 Melee 42 | . . . . . 42 Knockbacks . | . . . . . . Impact . | . . . . . . Kinetic . | . . . . . . Secondary . | . . . . . . Self-Inflicted Damage 42 | . . . . . 42 Shots 1 | . . . . . 1 Rammed . | . . . . . . Targets Rammed 2 | . 2 . . . . Kicked 2 | . 2 . . . . Crushed . | . . . . . . Highest Temperature 162 | 132 69 9 . . 162 Average Temperature 39 | 58 27 5 . . 45 Received Heat Transfer 489 | 12 108 108 . . 261 Siege Activations . | . . . . . . Robots Corrupted 1 | . . . . . 1 Combat Hostiles 1 | . . . . . 1 Parts Fried 3 | . . . . . 3 Impact Corruptions 1 | . . . . . 1 Robots Melted . | . . . . . . Combat Hostiles . | . . . . . . Parts Melted 1 | . 1 . . . . Heat Transferred 2137 | 149 1251 259 . . 478 Parts Sabotaged . | . . . . . . Parts Stolen . | . . . . . . Parts Stripped . | . . . . . . Power Chain Reactions 4 | . . . . . 4 Alert | -11 -10 -9 -9 -7 -6 ------- Run | Yrd Mat Mat Min Zio Pro Peak Influence 182 | 25 182 162 63 . . Initial 63 | . 16 35 63 . . Average 77 | 6 91 92 63 . . Maximum Alert Level . | . . . . . . Low Security (%) 100 | 100 100 100 100 . . Level 1 . | . . . . . . Level 2 . | . . . . . . Level 3 . | . . . . . . Level 4 . | . . . . . . Level 5 . | . . . . . . High Security . | . . . . . . Max Security . | . . . . . . Squads Dispatched 6 | . 4 2 . . . Investigation 2 | . 2 . . . . Extermination . | . . . . . . Reinforcement 4 | . 2 2 . . . Assault . | . . . . . . Garrison . | . . . . . . Intercept . | . . . . . . Searches Triggered . | . . . . . . Construction Impeded . | . . . . . . Haulers Reinforced . | . . . . . . Active Scanning Responses . | . . . . . . Cargo Convoy Interrupts . | . . . . . . Stealth | -11 -10 -9 -9 -7 -6 --------- Run | Yrd Mat Mat Min Zio Pro Distress Signals 3 | . 1 2 . . . Communications Jammed . | . . . . . . Distress Signals . | . . . . . . Times Spotted 39 | 1 12 11 . . 15 Peak Tracking Total 5 | 1 5 5 . . 5 Tactical Retreats 8 | . 1 1 . . 6 Traps | -11 -10 -9 -9 -7 -6 ------- Run | Yrd Mat Mat Min Zio Pro Traps Triggered 2 | . 2 . . . . Indirectly . | . . . . . . Trap Hack Attempts . | . . . . . . Triggered . | . . . . . . Disarmed . | . . . . . . Reprogrammed . | . . . . . . Reused . | . . . . . . Traps Extracted . | . . . . . . Installed . | . . . . . . Triggered . | . . . . . . Machines | -11 -10 -9 -9 -7 -6 ---------- Run | Yrd Mat Mat Min Zio Pro Machines Disabled 1 | . . 1 . . . Max in Single Turn 1 | . . 1 . . . Machines Repaired . | . . . . . . Machines Dismantled . | . . . . . . Machines Sabotaged . | . . . . . . Overloaded Fab Kills . | . . . . . . Hacking | -11 -10 -9 -9 -7 -6 --------- Run | Yrd Mat Mat Min Zio Pro Machines Accessed 4 | . 4 . . . . Terminals 3 | . 3 . . . . Fabricators . | . . . . . . Repair Stations . | . . . . . . Recycling Units 1 | . 1 . . . . Scanalyzers . | . . . . . . Garrison Access . | . . . . . . Total Hacks 17 | . 17 . . . . Successful 11 | . 11 . . . . Failed 6 | . 6 . . . . Catastrophic . | . . . . . . Database Lockouts . | . . . . . . Manual . | . . . . . . Terminals 15 | . 15 . . . . Fabricators . | . . . . . . Repair Stations . | . . . . . . Recycling Units 2 | . 2 . . . . Scanalyzers . | . . . . . . Garrison Access . | . . . . . . Terminal Hacks 9 | . 9 . . . . Record 5 | . 5 . . . . Robot Analysis 1 | . 1 . . . . Alert Level 1 | . 1 . . . . Dispatch Records 1 | . 1 . . . . Maintenance Status 1 | . 1 . . . . Fabricator Hacks . | . . . . . . Repair Station Hacks . | . . . . . . Recycling Unit Hacks 2 | . 2 . . . . Process 1 | . 1 . . . . Report Inventory 1 | . 1 . . . . Scanalyzer . | . . . . . . Garrison Access Hacks . | . . . . . . Unauthorized Hacks . | . . . . . . Terminals . | . . . . . . Fabricators . | . . . . . . Repair Stations . | . . . . . . Recycling Units . | . . . . . . Scanalyzers . | . . . . . . Garrison Access . | . . . . . . Data Cores Recovered . | . . . . . . Used . | . . . . . . Hacking Detections 2 | . 2 . . . . Full Trace Events 1 | . 1 . . . . Feedback Events . | . . . . . . Feedback Blocked . | . . . . . . Robot Schematics Acquired . | . . . . . . Robots Built . | . . . . . . Authchips . | . . . . . . Time . | . . . . . . Total Robot Build Rating . | . . . . . . Part Schematics Acquired . | . . . . . . Parts Built . | . . . . . . Authchips . | . . . . . . Time . | . . . . . . Total Part Build Rating . | . . . . . . Parts Repaired . | . . . . . . Time . | . . . . . . Parts Recycled . | . . . . . . Recycled Matter 186 | . 186 . . . . Retrieved Matter . | . . . . . . Retrieved Components . | . . . . . . Parts Scanalyzed . | . . . . . . Part Schematics Acquired . | . . . . . . Parts Damaged . | . . . . . . Bothacking | -11 -10 -9 -9 -7 -6 ------------ Run | Yrd Mat Mat Min Zio Pro Used RIF Installer . | . . . . . . Robots Hacked . | . . . . . . Non-combat . | . . . . . . Combat . | . . . . . . Robot Hacks Applied . | . . . . . . Relay Couplers Released . | . . . . . . Fabnet Peak Effective % . | . . . . . . Robots Rewired . | . . . . . . Allies Hacked . | . . . . . . Hacks Repelled . | . . . . . . Allies | -11 -10 -9 -9 -7 -6 -------- Run | Yrd Mat Mat Min Zio Pro Total Allies 3 | . . . . 3 . Largest Group 3 | . . . . 3 3 Highest-Rated Group 62 | . . . . 62 62 Highest-Rated Ally 28 | . . . . 28 28 Total Orders . | . . . . . . Ally Attacks 12 | . . . . . 12 Total Damage 354 | . . . . . 354 Kills 1 | . . . . . 1 Allies Corrupted . | . . . . . . Allies Melted . | . . . . . . Intel | -11 -10 -9 -9 -7 -6 ------- Run | Yrd Mat Mat Min Zio Pro Robot Analysis Total 1 | . 1 . . . . Derelict Logs Recovered 2 | . . . . . 2 Drone Launches . | . . . . . . Drone Recoveries . | . . . . . . Exploration | -11 -10 -9 -9 -7 -6 ------------- Run | Yrd Mat Mat Min Zio Pro Turns Passed 1461 | 150 562 268 106 68 307 Spaces Moved 1409 | 104 374 188 176 130 437 Core 16 | 16 . . . . . Treads . | . . . . . . Legs 246 | 88 158 . . . . Wheels 9 | . . . . . 9 Hover 36 | . 6 30 . . . Flight 1102 | . 210 158 176 130 428 Fastest Speed 29 | 50 117 31 31 31 29 Average Speed 71 | 109 118 104 31 31 35 Slowest Speed 280 | 120 120 280 31 31 107 Overloaded Moves . | . . . . . . Propulsion Burnouts . | . . . . . . Robots Hopped 3 | . . . 3 . . Cave-ins Triggered . | . . . . . . Exploration Rate (%) 29 | 7 59 18 33 11 49 Regions Visited 5 Branch Regions 3 Pre-discovered Areas . | . . . . . . Known Exits Taken . | . . . . . . Unknown Exits Taken 5 | 1 1 1 1 1 . Scrap Searched 2 | . . . 1 1 . Spaces Dug . | . . . . . . Terrain Destroyed 10 | . . . . . 10 Melee . | . . . . . . Projectile . | . . . . . . AOE 10 | . . . . . 10 Terrain Rammed . | . . . . . . Walls Destroyed . | . . . . . . Machines Disabled . | . . . . . . Actions | -11 -10 -9 -9 -7 -6 --------- Run | Yrd Mat Mat Min Zio Pro Total 1732 | 133 436 242 223 158 540 Wait 113 | . . . 51 22 40 Move 1398 | 103 373 187 169 129 437 Hop 3 | . . . 3 . . Pick Up 47 | 12 11 14 . 4 6 Fast Attach 1 | . 1 . . . . Attach 36 | 7 3 10 . . 16 Detach 10 | . 4 2 . . 4 Swap 9 | 1 5 1 . . 2 Drop 26 | 5 7 8 . 3 3 Fire 85 | 5 30 20 . . 30 Melee 2 | . . . . . 2 Ram . | . . . . . . Kick 2 | . 2 . . . . Crush . | . . . . . . Escape Stasis . | . . . . . . Rewire . | . . . . . . Trap . | . . . . . . Miscellaneous . | . . . . . . Route ------- -11/Scrapyard -10/Materials (discovered 2 exits: *Mat x2) -9/Materials -9/Mines (discovered 2 exits: [*Mat] / [*Zio]) -7/Zion -6/Proximity Caves History --------- Turn | Location | Event 2 | -11/Scrapyard | Met Revision 17 114 | -11/Scrapyard | Discovered new exit (range 8) 151 | -11/Scrapyard | Entered Materials 318 | -10/Materials | Build established: Mutant 320 | -10/Materials | Discovered new exit (range 3) 576 | -10/Materials | Core integrity fell below 50% 664 | -10/Materials | Build established: Scavenger-Mutant 681 | -10/Materials | Discovered new exit (range 16) 713 | -10/Materials | Entered another Materials area 713 | -9/Materials | Evolved 2 slots: Propulsion x2 865 | -9/Materials | Met 8R-AWN 929 | -9/Materials | Discovered new exit (range 15) 981 | -9/Materials | Entered Mines 982 | -9/Mines | Followed 8R-AWN into the Mines 1056 | -9/Mines | Discovered new exit (range 6) 1078 | -9/Mines | A Derelict revealed a hidden shortcut to a safe place 1087 | -9/Mines | Entered Zion 1100 | -7/Zion | Gained Derelict followers 1120 | -7/Zion | Discovered new exit (range 12) 1155 | -7/Zion | Entered Proximity Caves 1155 | -6/Proximity Caves | Accompanied by 3 allies 1185 | -6/Proximity Caves | Spotted B-75 Beast 1212 | -6/Proximity Caves | Core integrity fell below 50% 1232 | -6/Proximity Caves | Lost 3 allies 1259 | -6/Proximity Caves | Lost 5 parts (2n1u2w) 1307 | -6/Proximity Caves | Learned Factory emergency access door positions 1342 | -6/Proximity Caves | Learned location of 1 exit from Factory 1438 | -6/Proximity Caves | Core integrity fell below 20% 1462 | -6/Proximity Caves | Destroyed by B-75 Beast with Heavy Machine Gun Last Messages --------------- Com. Battery fried. U1-ABV(S) destroyed. Lgt. EM Pulse Cannon destroyed. Acquired Lgt. Nuclear Core. Heat Sink destroyed. Beam Cannon destroyed. Acquired 4 matter. Imp. Flight Unit destroyed. Knocked back. Lgt. EM Pulse Cannon destroyed. Acquired Flamer. Acquired Arm. Wheel. Flamer destroyed. Knocked back. Acquired Great Maul. Lgt. Nuclear Core destroyed. Knocked back. B-75 Beast suffers critical hit (Smash). Destroyed Hvy. Plasma Cannon. B-75 Beast system corrupted by crushing effect. Map ----- +----------------------------------------------------+ | ?????????????????????????????????????????????????? | | ?????????????????????????????????????????????????? | | ?????????????????????????????????????????????????? | | ?????????????????????????????????????????????????? | | ?????????????????????????????????????????????????? | | ?????????????????????????????????????????????????? | | ?????????????????????????????????????????????????? | | ?????????????????????????????????????????????????? | | ?????????????????????????????????????????????????? | | ?????????????????????????????????????????????????? | | ?????????????????????#####???????????????????????? | | ????????????????###### ########???????????????? | | ???????????????## ##????????##?#### | | ???????????????# ##??????## ## # | | ???????????????# #?????## | | ??????????????## [ #####?# | | ??????????????# "#= ### ### | | ??????????????# ;### #?# ### # ## | | ??????????????# ##?## ### ###### #? | | ??????????????# ;#### ## ##### #? | | ??????????????# ;"; #? | | ??????????????## % % #######? | | ???????????????# % # ##??????? | | ???????????????# "###????? | | ???????????????# "#;;;% %#????? | | ???????????????# #?#; @ % % "#??? | | ?????????????# " ??# BB #??## | | ????????????????????## BB #???? | | ???????????????????## % ;# ##???? | | ???????????????????#; ! ## ##????? | | ????????????????####; ### ##?????? | | ????????????????# #; ;#?#####??????# | | ????????????????# % ;##???????????## | | ????????????????# ##; #??????????## | | ????????????????# % ;"######??????## | | ????????????????# % ! %=%######## | | ????????????????# *%[ ! | | ???????????????#; ;# | | ???????????????## #"## ####### | | ????????????????## ## #### #?????## | | ?????????????????## ###### #??# #??????## | | ??????????????????## #????## #??# #??????## | | ???????????????????## #?????# #??# ??????# | | ????????????????????# ?????# ? #?????## | | ????????????????????## ????####### ##??????? | | ?????????????????????## #?????????## ###???????? | | ???????????????????????####??????????###?????????? | | ?????????????????????????????????????????????????? | | ?????????????????????????????????????????????????? | | ?????????????????????????????????????????????????? | +----------------------------------------------------+ Best States ------------- Heat Dissipation 38 Energy Generation 14 Energy Capacity 265 Matter Stores 371 Matter Capacity 400 Sight Range 16 Terrain Scan Density 10 Evasion (%) 64 Item Schematics ----------------- None Robot Schematics ------------------ None Fabricated ------------ Nothing Alien Tech Used ----------------- None Achievements -------------- Power Corrupts Challenges ------------ None Game ------ Seed ImprovedAblativeNetwork Manual? 0 Play Time 00:33:02 Cumulative 4.0 hours Start 2024.04.01 @ 23:15:01 End 2024.04.01 @ 23:46:32 Sessions 1 Manual Loads 0 Difficulty Rogue Special Mode None Game No. 3 Rogue 3 Adventurer 0 Explorer 0 Win Type - Total 0 Types 0/0/0/0/0/0/0/0/0 Lore% 6 Gallery% 11 Achievement% 12 Wizard Run 0 Options --------- Layout 1 ASCII 0 Keyboard 0 Movement Mouse Keybinds 0 Fullscreen 2 Font 24/Smallcaps Map View 50x35 Zoom Use 0% Tactical HUD 0 Map Filters NONE Filters NONE Steam 1 RUN: d5df9b04-f3f1-46d9-90c3-d014ad3d40ef